[Event "Titled Tuesday Blitz May 23 Late 2023"]
[White "Zakhartsov, Vladimir"]
[Black "Maksimovic, Bojan"]
[WhiteFideId "4145097"]
[BlackFideId "14408120"]
[WhiteElo "2495"]
[BlackElo "2468"]
[Result "1-0"]
[Round "05"]
[TimeControl "180+2"]
[Date "2023.05.23"]
[WhiteClock "0:00:16"]
[BlackClock "0:00:00"]

1. e4 {[%clk 0:02:58]}  g6 {[%clk 0:03:00]} 2. d4 {[%clk 0:02:58]}  Nf6 {[%clk 0:03:00]} 3. e5 {[%clk 0:02:53]}  Nh5 {[%clk 0:03:00]} 4. Nf3 {[%clk 0:02:51]}  d6 {[%clk 0:03:00]} 5. Bc4 {[%clk 0:02:50]}  Nc6 {[%clk 0:02:59]} 6. Qe2 {[%clk 0:02:48]}  dxe5 {[%clk 0:02:26]} 7. dxe5 {[%clk 0:02:48]}  Nd4 {[%clk 0:02:25]} 8. Nxd4 {[%clk 0:02:28]}  Qxd4 {[%clk 0:02:26]} 9. c3 {[%clk 0:02:24]}  Qg4 {[%clk 0:01:59]} 10. O-O {[%clk 0:01:50]}  Qxe2 {[%clk 0:01:50]} 11. Bxe2 {[%clk 0:01:50]}  Ng7 {[%clk 0:01:50]} 12. g4 {[%clk 0:01:39]}  h5 {[%clk 0:01:45]} 13. h3 {[%clk 0:01:40]}  Bd7 {[%clk 0:01:18]} 14. Be3 {[%clk 0:01:36]}  hxg4 {[%clk 0:01:17]} 15. hxg4 {[%clk 0:01:35]}  Bc6 {[%clk 0:01:17]} 16. f3 {[%clk 0:01:35]}  Ne6 {[%clk 0:01:16]} 17. Bc4 {[%clk 0:01:20]}  O-O-O {[%clk 0:00:39]} 18. Bxe6+ {[%clk 0:00:59]}  fxe6 {[%clk 0:00:40]} 19. Nd2 {[%clk 0:00:59]}  Rd3 {[%clk 0:00:33]} 20. Rae1 {[%clk 0:00:55]}  Bg7 {[%clk 0:00:33]} 21. Bg5 {[%clk 0:00:55]}  Rhd8 {[%clk 0:00:21]} 22. Rf2 {[%clk 0:00:55]}  R8d5 {[%clk 0:00:20]} 23. Bf4 {[%clk 0:00:48]}  Ra5 {[%clk 0:00:20]} 24. a3 {[%clk 0:00:46]}  g5 {[%clk 0:00:20]} 25. Bg3 {[%clk 0:00:42]}  Rad5 {[%clk 0:00:20]} 26. Nc4 {[%clk 0:00:28]}  Rd1 {[%clk 0:00:20]} 27. Rxd1 {[%clk 0:00:24]}  Rxd1+ {[%clk 0:00:21]} 28. Kg2 {[%clk 0:00:25]}  Rd3 {[%clk 0:00:21]} 29. Nd2 {[%clk 0:00:19]}  a5 {[%clk 0:00:21]} 30. Kf1 {[%clk 0:00:19]}  Bb5 {[%clk 0:00:19]} 31. Ke1 {[%clk 0:00:19]}  Kd7 {[%clk 0:00:18]} 32. c4 {[%clk 0:00:19]}  Bc6 {[%clk 0:00:15]} 33. Ke2 {[%clk 0:00:19]}  Rd4 {[%clk 0:00:10]} 34. Ke3 {[%clk 0:00:19]}  Rxd2 {[%clk 0:00:02]} 35. Rxd2+ {[%clk 0:00:20]}  Ke8 {[%clk 0:00:03]} 36. b4 {[%clk 0:00:17]}  axb4 {[%clk 0:00:01]} 37. axb4 {[%clk 0:00:18]}  Kf7 {[%clk 0:00:01]} 38. b5 {[%clk 0:00:17]}  Be8 {[%clk 0:00:00]} 39. Rd8 {[%clk 0:00:16]} 1-0


[Site "https://www.chess.com"]

[Event "Titled Tuesday Blitz May 23 Late 2023"]
[White "Grischuk, Alexander"]
[Black "Szpar, Milosz"]
[WhiteFideId "4126025"]
[BlackFideId "1184989"]
[WhiteElo "2721"]
[BlackElo "2434"]
[Result "1-0"]
[Round "05"]
[TimeControl "180+2"]
[Date "2023.05.23"]
[WhiteClock "0:00:03"]
[BlackClock "0:00:05"]

1. Nf3 {[%clk 0:02:56]}  Nf6 {[%clk 0:02:59]} 2. g3 {[%clk 0:02:56]}  c5 {[%clk 0:02:58]} 3. Bg2 {[%clk 0:02:55]}  Nc6 {[%clk 0:02:57]} 4. O-O {[%clk 0:02:55]}  g6 {[%clk 0:02:55]} 5. d4 {[%clk 0:02:48]}  cxd4 {[%clk 0:02:55]} 6. Nxd4 {[%clk 0:02:48]}  Bg7 {[%clk 0:02:54]} 7. c4 {[%clk 0:02:47]}  O-O {[%clk 0:02:54]} 8. Nc3 {[%clk 0:02:46]}  Qa5 {[%clk 0:02:52]} 9. Nb3 {[%clk 0:02:41]}  Qh5 {[%clk 0:02:52]} 10. Nd5 {[%clk 0:02:42]}  d6 {[%clk 0:02:46]} 11. Nf4 {[%clk 0:02:42]}  Qe5 {[%clk 0:02:43]} 12. e4 {[%clk 0:02:41]}  Bg4 {[%clk 0:02:19]} 13. f3 {[%clk 0:02:37]}  Be6 {[%clk 0:02:19]} 14. Nd5 {[%clk 0:02:24]}  Rac8 {[%clk 0:02:07]} 15. Rf2 {[%clk 0:02:12]}  Rfe8 {[%clk 0:01:56]} 16. g4 {[%clk 0:01:31]}  g5 {[%clk 0:01:35]} 17. f4 {[%clk 0:01:24]}  gxf4 {[%clk 0:01:25]} 18. Bxf4 {[%clk 0:01:24]}  Nxg4 {[%clk 0:01:25]} 19. Bxe5 {[%clk 0:01:22]}  Nxf2 {[%clk 0:01:25]} 20. Kxf2 {[%clk 0:01:20]}  Nxe5 {[%clk 0:01:25]} 21. Nd4 {[%clk 0:01:07]}  Rxc4 {[%clk 0:01:22]} 22. Nxe6 {[%clk 0:00:56]}  fxe6 {[%clk 0:01:22]} 23. Ne3 {[%clk 0:00:57]}  Rd4 {[%clk 0:01:18]} 24. Qb3 {[%clk 0:00:52]}  d5 {[%clk 0:00:59]} 25. Rd1 {[%clk 0:00:47]}  Rf8+ {[%clk 0:00:50]} 26. Kg1 {[%clk 0:00:29]}  Nf3+ {[%clk 0:00:48]} 27. Kh1 {[%clk 0:00:24]}  Nd2 {[%clk 0:00:48]} 28. Qxb7 {[%clk 0:00:22]}  Nxe4 {[%clk 0:00:46]} 29. Bxe4 {[%clk 0:00:20]}  Rxe4 {[%clk 0:00:46]} 30. Nf1 {[%clk 0:00:17]}  Re2 {[%clk 0:00:22]} 31. Ng3 {[%clk 0:00:15]}  Rxb2 {[%clk 0:00:11]} 32. Qxe7 {[%clk 0:00:15]}  Rff2 {[%clk 0:00:09]} 33. Qxe6+ {[%clk 0:00:15]}  Kh8 {[%clk 0:00:10]} 34. Qe8+ {[%clk 0:00:11]}  Bf8 {[%clk 0:00:10]} 35. Nf1 {[%clk 0:00:08]}  d4 {[%clk 0:00:09]} 36. Qe5+ {[%clk 0:00:07]}  Bg7 {[%clk 0:00:09]} 37. Qe8+ {[%clk 0:00:07]}  Bf8 {[%clk 0:00:09]} 38. Qe4 {[%clk 0:00:06]}  Bg7 {[%clk 0:00:09]} 39. Kg1 {[%clk 0:00:06]}  Rf8 {[%clk 0:00:05]} 40. Rc1 {[%clk 0:00:04]}  Rb6 {[%clk 0:00:05]} 41. Ng3 {[%clk 0:00:04]}  Rg6 {[%clk 0:00:04]} 42. Rf1 {[%clk 0:00:04]}  Rg8 {[%clk 0:00:04]} 43. Kh1 {[%clk 0:00:04]}  Rd8 {[%clk 0:00:04]} 44. Nf5 {[%clk 0:00:04]}  d3 {[%clk 0:00:05]} 45. Nxg7 {[%clk 0:00:04]}  Rxg7 {[%clk 0:00:05]} 46. Qe5 {[%clk 0:00:03]}  d2 {[%clk 0:00:05]} 47. Rg1 {[%clk 0:00:03]}  d1=Q {[%clk 0:00:05]} 48. Qxg7# {[%clk 0:00:03]} 1-0


[Site "https://www.chess.com"]

[Event "Titled Tuesday Blitz May 23 Late 2023"]
[White "Andreikin, Dmitry"]
[Black "Nazari, Arad"]
[WhiteFideId "4158814"]
[BlackFideId "12577324"]
[WhiteElo "2736"]
[BlackElo "2175"]
[Result "1-0"]
[Round "05"]
[TimeControl "180+2"]
[Date "2023.05.23"]
[WhiteClock "0:00:43"]
[BlackClock "0:00:00"]

1. e4 {[%clk 0:03:00]}  c5 {[%clk 0:03:00]} 2. Nf3 {[%clk 0:02:57]}  d6 {[%clk 0:02:46]} 3. c3 {[%clk 0:02:56]}  Nf6 {[%clk 0:02:46]} 4. h3 {[%clk 0:02:56]}  g6 {[%clk 0:02:45]} 5. Bd3 {[%clk 0:02:56]}  Bg7 {[%clk 0:02:45]} 6. Bc2 {[%clk 0:02:56]}  O-O {[%clk 0:02:46]} 7. d4 {[%clk 0:02:56]}  a6 {[%clk 0:02:46]} 8. O-O {[%clk 0:02:54]}  b5 {[%clk 0:02:41]} 9. e5 {[%clk 0:02:46]}  Nd5 {[%clk 0:02:26]} 10. exd6 {[%clk 0:02:25]}  Qxd6 {[%clk 0:02:04]} 11. Nbd2 {[%clk 0:02:23]}  cxd4 {[%clk 0:02:00]} 12. Ne4 {[%clk 0:02:23]}  Qb6 {[%clk 0:01:56]} 13. Nxd4 {[%clk 0:02:22]}  Bb7 {[%clk 0:01:54]} 14. Qe2 {[%clk 0:02:22]}  Nc6 {[%clk 0:01:45]} 15. Nb3 {[%clk 0:02:16]}  Ne5 {[%clk 0:01:27]} 16. Nec5 {[%clk 0:02:11]}  Bc6 {[%clk 0:01:25]} 17. Be4 {[%clk 0:02:05]}  Rac8 {[%clk 0:00:47]} 18. Re1 {[%clk 0:02:05]}  e6 {[%clk 0:00:43]} 19. h4 {[%clk 0:01:57]}  Nd7 {[%clk 0:00:32]} 20. Nxd7 {[%clk 0:01:50]}  Bxd7 {[%clk 0:00:33]} 21. Bxd5 {[%clk 0:01:48]}  exd5 {[%clk 0:00:32]} 22. Be3 {[%clk 0:01:49]}  Qf6 {[%clk 0:00:27]} 23. Bg5 {[%clk 0:01:33]}  Qd6 {[%clk 0:00:18]} 24. Be7 {[%clk 0:01:32]}  Qf4 {[%clk 0:00:19]} 25. g3 {[%clk 0:01:26]}  Qc4 {[%clk 0:00:17]} 26. Bxf8 {[%clk 0:01:24]}  Rxf8 {[%clk 0:00:15]} 27. Qxc4 {[%clk 0:01:17]}  bxc4 {[%clk 0:00:15]} 28. Nc5 {[%clk 0:01:16]}  Bb5 {[%clk 0:00:15]} 29. a4 {[%clk 0:01:15]}  Bc6 {[%clk 0:00:09]} 30. Nxa6 {[%clk 0:01:15]}  d4 {[%clk 0:00:10]} 31. Nb4 {[%clk 0:01:00]}  Bf3 {[%clk 0:00:10]} 32. a5 {[%clk 0:00:50]}  dxc3 {[%clk 0:00:09]} 33. Ra3 {[%clk 0:00:45]}  Ra8 {[%clk 0:00:04]} 34. bxc3 {[%clk 0:00:45]}  Rb8 {[%clk 0:00:00]} 35. a6 {[%clk 0:00:43]} 1-0


[Site "https://www.chess.com"]

[Event "Titled Tuesday Blitz May 23 Late 2023"]
[White "Martinez Alcantara, Jose Eduardo"]
[Black "Chen, Ryo"]
[WhiteFideId "3805662"]
[BlackFideId "7003072"]
[WhiteElo "2711"]
[BlackElo "2169"]
[Result "1-0"]
[Round "05"]
[TimeControl "180+2"]
[Date "2023.05.23"]
[WhiteClock "0:00:40"]
[BlackClock "0:00:11"]

1. e4 {[%clk 0:03:00]}  c5 {[%clk 0:02:59]} 2. Nf3 {[%clk 0:02:54]}  d6 {[%clk 0:03:00]} 3. c3 {[%clk 0:02:55]}  Nf6 {[%clk 0:02:57]} 4. h3 {[%clk 0:02:55]}  g6 {[%clk 0:02:51]} 5. Bd3 {[%clk 0:02:54]}  Nc6 {[%clk 0:02:49]} 6. Bc2 {[%clk 0:02:43]}  e5 {[%clk 0:02:49]} 7. d4 {[%clk 0:02:38]}  exd4 {[%clk 0:02:47]} 8. cxd4 {[%clk 0:02:39]}  cxd4 {[%clk 0:02:48]} 9. Nxd4 {[%clk 0:02:40]}  Bg7 {[%clk 0:02:47]} 10. Nxc6 {[%clk 0:02:40]}  bxc6 {[%clk 0:02:41]} 11. O-O {[%clk 0:02:41]}  O-O {[%clk 0:02:41]} 12. Nc3 {[%clk 0:02:41]}  d5 {[%clk 0:02:41]} 13. Bg5 {[%clk 0:02:41]}  h6 {[%clk 0:02:35]} 14. Be3 {[%clk 0:02:40]}  Nxe4 {[%clk 0:02:22]} 15. Nxe4 {[%clk 0:02:39]}  dxe4 {[%clk 0:02:23]} 16. Bxe4 {[%clk 0:02:40]}  Be6 {[%clk 0:02:21]} 17. b3 {[%clk 0:02:37]}  Bd5 {[%clk 0:02:15]} 18. Bxd5 {[%clk 0:02:34]}  cxd5 {[%clk 0:02:07]} 19. Bd4 {[%clk 0:02:34]}  Qg5 {[%clk 0:02:01]} 20. Bxg7 {[%clk 0:02:32]}  Kxg7 {[%clk 0:02:02]} 21. Qd4+ {[%clk 0:02:33]}  Kg8 {[%clk 0:02:00]} 22. Rad1 {[%clk 0:02:32]}  a5 {[%clk 0:01:59]} 23. Qxd5 {[%clk 0:02:32]}  Qxd5 {[%clk 0:01:51]} 24. Rxd5 {[%clk 0:02:33]}  a4 {[%clk 0:01:49]} 25. Rd2 {[%clk 0:02:06]}  axb3 {[%clk 0:01:48]} 26. axb3 {[%clk 0:02:07]}  Rfb8 {[%clk 0:01:47]} 27. Rb1 {[%clk 0:02:07]}  Rb4 {[%clk 0:01:45]} 28. Kf1 {[%clk 0:02:06]}  Rab8 {[%clk 0:01:44]} 29. Rd3 {[%clk 0:02:05]}  Kg7 {[%clk 0:01:43]} 30. Ke2 {[%clk 0:02:05]}  g5 {[%clk 0:01:38]} 31. Kd2 {[%clk 0:02:01]}  h5 {[%clk 0:01:35]} 32. Kc3 {[%clk 0:01:58]}  R4b6 {[%clk 0:01:29]} 33. b4 {[%clk 0:01:55]}  Rc6+ {[%clk 0:01:29]} 34. Kd2 {[%clk 0:01:53]}  Rb5 {[%clk 0:01:24]} 35. Rd4 {[%clk 0:01:50]}  Kg6 {[%clk 0:01:22]} 36. Kd3 {[%clk 0:01:50]}  f5 {[%clk 0:01:20]} 37. Re1 {[%clk 0:01:45]}  f4 {[%clk 0:01:14]} 38. h4 {[%clk 0:01:41]}  gxh4 {[%clk 0:01:10]} 39. Rxf4 {[%clk 0:01:38]}  Rd5+ {[%clk 0:01:04]} 40. Rd4 {[%clk 0:01:36]}  Rf5 {[%clk 0:01:02]} 41. Re2 {[%clk 0:01:29]}  Kg5 {[%clk 0:00:59]} 42. Rb2 {[%clk 0:01:25]}  Rcf6 {[%clk 0:00:48]} 43. Ke3 {[%clk 0:01:10]}  h3 {[%clk 0:00:37]} 44. gxh3 {[%clk 0:00:59]}  Rf3+ {[%clk 0:00:37]} 45. Ke4 {[%clk 0:00:59]}  Rxf2 {[%clk 0:00:34]} 46. Rxf2 {[%clk 0:00:56]}  Rxf2 {[%clk 0:00:35]} 47. Kd5 {[%clk 0:00:51]}  Rf3 {[%clk 0:00:31]} 48. h4+ {[%clk 0:00:50]}  Kf5 {[%clk 0:00:30]} 49. b5 {[%clk 0:00:50]}  Rb3 {[%clk 0:00:30]} 50. Kc5 {[%clk 0:00:48]}  Rc3+ {[%clk 0:00:27]} 51. Rc4 {[%clk 0:00:47]}  Rb3 {[%clk 0:00:23]} 52. Rb4 {[%clk 0:00:42]}  Rc3+ {[%clk 0:00:20]} 53. Kd6 {[%clk 0:00:39]}  Rd3+ {[%clk 0:00:19]} 54. Ke7 {[%clk 0:00:38]}  Re3+ {[%clk 0:00:18]} 55. Kf7 {[%clk 0:00:39]}  Rd3 {[%clk 0:00:14]} 56. b6 {[%clk 0:00:39]}  Rd7+ {[%clk 0:00:15]} 57. Ke8 {[%clk 0:00:38]}  Rb7 {[%clk 0:00:15]} 58. Kd8 {[%clk 0:00:39]}  Ke6 {[%clk 0:00:14]} 59. Kc8 {[%clk 0:00:39]}  Rh7 {[%clk 0:00:12]} 60. b7 {[%clk 0:00:39]}  Rh8+ {[%clk 0:00:13]} 61. Kc7 {[%clk 0:00:39]}  Rh7+ {[%clk 0:00:11]} 62. Kc6 {[%clk 0:00:40]} 1-0


[Site "https://www.chess.com"]

[Event "Titled Tuesday Blitz May 23 Late 2023"]
[White "Martinez Ramirez, Lennis"]
[Black "Hakobyan, Aram"]
[WhiteFideId "3509079"]
[BlackFideId "13306677"]
[WhiteElo "2410"]
[BlackElo "2584"]
[Result "0-1"]
[Round "05"]
[TimeControl "180+2"]
[Date "2023.05.23"]
[WhiteClock "0:00:05"]
[BlackClock "0:01:09"]

1. c4 {[%clk 0:03:00]}  g6 {[%clk 0:02:59]} 2. Nc3 {[%clk 0:03:00]}  Bg7 {[%clk 0:02:59]} 3. Nf3 {[%clk 0:02:57]}  d6 {[%clk 0:02:58]} 4. d4 {[%clk 0:02:57]}  Nc6 {[%clk 0:02:56]} 5. d5 {[%clk 0:02:50]}  Ne5 {[%clk 0:02:56]} 6. Nxe5 {[%clk 0:02:48]}  Bxe5 {[%clk 0:02:57]} 7. e4 {[%clk 0:02:47]}  e6 {[%clk 0:02:56]} 8. Be2 {[%clk 0:02:45]}  Nf6 {[%clk 0:02:56]} 9. Qd3 {[%clk 0:02:36]}  O-O {[%clk 0:02:50]} 10. O-O {[%clk 0:02:33]}  exd5 {[%clk 0:02:45]} 11. cxd5 {[%clk 0:02:33]}  Re8 {[%clk 0:02:42]} 12. Bg5 {[%clk 0:02:08]}  c5 {[%clk 0:02:26]} 13. dxc6 {[%clk 0:01:57]}  bxc6 {[%clk 0:02:25]} 14. f4 {[%clk 0:01:57]}  Bxc3 {[%clk 0:02:23]} 15. bxc3 {[%clk 0:01:44]}  Qb6+ {[%clk 0:02:21]} 16. Qd4 {[%clk 0:01:25]}  Nxe4 {[%clk 0:02:19]} 17. Bf3 {[%clk 0:01:19]}  d5 {[%clk 0:02:12]} 18. Rfe1 {[%clk 0:01:13]}  Ba6 {[%clk 0:02:05]} 19. Bxe4 {[%clk 0:01:10]}  dxe4 {[%clk 0:02:02]} 20. g4 {[%clk 0:00:58]}  Rab8 {[%clk 0:01:42]} 21. Qxb6 {[%clk 0:00:57]}  Rxb6 {[%clk 0:01:39]} 22. Rad1 {[%clk 0:00:56]}  Rb2 {[%clk 0:01:17]} 23. Bf6 {[%clk 0:00:56]}  Be2 {[%clk 0:01:09]} 24. Rb1 {[%clk 0:00:37]}  Rxa2 {[%clk 0:01:08]} 25. Ra1 {[%clk 0:00:13]}  Rxa1 {[%clk 0:01:08]} 26. Rxa1 {[%clk 0:00:13]}  Bxg4 {[%clk 0:01:09]} 27. Rxa7 {[%clk 0:00:08]}  e3 {[%clk 0:01:08]} 28. Re7 {[%clk 0:00:08]}  Kf8 {[%clk 0:01:08]} 29. Rxe8+ {[%clk 0:00:07]}  Kxe8 {[%clk 0:01:09]} 30. Bd4 {[%clk 0:00:07]}  e2 {[%clk 0:01:06]} 31. Kf2 {[%clk 0:00:08]}  Kd7 {[%clk 0:01:05]} 32. c4 {[%clk 0:00:08]}  Ke6 {[%clk 0:01:05]} 33. c5 {[%clk 0:00:07]}  Kd5 {[%clk 0:01:05]} 34. Be3 {[%clk 0:00:07]}  Ke4 {[%clk 0:01:06]} 35. Bc1 {[%clk 0:00:07]}  Kd3 {[%clk 0:01:05]} 36. Ke1 {[%clk 0:00:06]}  Kd4 {[%clk 0:01:06]} 37. Ba3 {[%clk 0:00:05]}  Ke3 {[%clk 0:01:06]} 38. Bc1+ {[%clk 0:00:03]}  Kf3 {[%clk 0:01:07]} 39. h4 {[%clk 0:00:03]}  Kg3 {[%clk 0:01:06]} 40. h5 {[%clk 0:00:01]}  gxh5 {[%clk 0:01:07]} 41. f5 {[%clk 0:00:01]}  h4 {[%clk 0:01:07]} 42. Be3 {[%clk 0:00:01]}  h3 {[%clk 0:01:08]} 43. Bf2+ {[%clk 0:00:02]}  Kg2 {[%clk 0:01:09]} 44. Bd4 {[%clk 0:00:02]}  h2 {[%clk 0:01:09]} 45. Be5 {[%clk 0:00:03]}  h1=Q+ {[%clk 0:01:10]} 46. Kd2 {[%clk 0:00:04]}  Qd1+ {[%clk 0:01:10]} 47. Ke3 {[%clk 0:00:05]}  e1=Q+ {[%clk 0:01:11]} 48. Kf4 {[%clk 0:00:06]}  h6 {[%clk 0:01:08]} 49. Bd6 {[%clk 0:00:05]}  Qf3# {[%clk 0:01:09]} 0-1


[Site "https://www.chess.com"]

[Event "Titled Tuesday Blitz May 23 Late 2023"]
[White "Sjugirov, Sanan"]
[Black "benny_aizenberg"]
[WhiteFideId "4189302"]
[WhiteElo "2569"]
[BlackElo "2698"]
[Result "1-0"]
[Round "05"]
[TimeControl "180+2"]
[Date "2023.05.23"]
[WhiteClock "0:01:50"]
[BlackClock "0:01:23"]

1. d4 {[%clk 0:03:00]}  f5 {[%clk 0:02:58]} 2. Bf4 {[%clk 0:02:58]}  Nf6 {[%clk 0:02:58]} 3. e3 {[%clk 0:02:59]}  d6 {[%clk 0:02:57]} 4. Nc3 {[%clk 0:02:58]}  Nbd7 {[%clk 0:02:55]} 5. Nf3 {[%clk 0:02:52]}  c6 {[%clk 0:02:52]} 6. Bd3 {[%clk 0:02:49]}  g6 {[%clk 0:02:48]} 7. h4 {[%clk 0:02:45]}  Qa5 {[%clk 0:02:44]} 8. Bh2 {[%clk 0:02:27]}  e5 {[%clk 0:02:40]} 9. Be2 {[%clk 0:02:22]}  Bg7 {[%clk 0:02:24]} 10. dxe5 {[%clk 0:02:13]}  dxe5 {[%clk 0:02:23]} 11. Qd6 {[%clk 0:02:08]}  Ne4 {[%clk 0:01:46]} 12. Qe6+ {[%clk 0:02:07]}  Kf8 {[%clk 0:01:46]} 13. Bc4 {[%clk 0:01:56]}  Nd6 {[%clk 0:01:32]} 14. Qxd6+ {[%clk 0:01:54]}  Ke8 {[%clk 0:01:33]} 15. Ng5 {[%clk 0:01:50]}  Bf8 {[%clk 0:01:24]} 16. Bf7+ {[%clk 0:01:49]}  Kd8 {[%clk 0:01:23]} 17. Ne6# {[%clk 0:01:50]} 1-0


[Site "https://www.chess.com"]

[Event "Titled Tuesday Blitz May 23 Late 2023"]
[White "Haydon, David L"]
[Black "Sanal, Vahap"]
[WhiteFideId "415405"]
[BlackFideId "6300545"]
[WhiteElo "2326"]
[BlackElo "2606"]
[Result "0-1"]
[Round "05"]
[TimeControl "180+2"]
[Date "2023.05.23"]
[WhiteClock "0:00:22"]
[BlackClock "0:00:14"]

1. d4 {[%clk 0:03:00]}  d6 {[%clk 0:02:50]} 2. Nf3 {[%clk 0:03:00]}  c5 {[%clk 0:02:46]} 3. c3 {[%clk 0:02:59]}  cxd4 {[%clk 0:02:44]} 4. cxd4 {[%clk 0:02:59]}  g6 {[%clk 0:02:40]} 5. g3 {[%clk 0:02:59]}  Bg7 {[%clk 0:02:40]} 6. Bg2 {[%clk 0:02:59]}  Nf6 {[%clk 0:02:39]} 7. O-O {[%clk 0:02:59]}  O-O {[%clk 0:02:40]} 8. Nc3 {[%clk 0:02:51]}  Nc6 {[%clk 0:02:40]} 9. d5 {[%clk 0:02:48]}  Nb8 {[%clk 0:02:39]} 10. Nd4 {[%clk 0:02:47]}  Bd7 {[%clk 0:02:32]} 11. h3 {[%clk 0:02:45]}  Na6 {[%clk 0:02:32]} 12. e4 {[%clk 0:02:42]}  Qb6 {[%clk 0:02:31]} 13. Nb3 {[%clk 0:02:28]}  Rfc8 {[%clk 0:02:26]} 14. Be3 {[%clk 0:02:28]}  Qd8 {[%clk 0:02:27]} 15. Bd4 {[%clk 0:02:25]}  h5 {[%clk 0:02:26]} 16. Kh2 {[%clk 0:02:22]}  Rc4 {[%clk 0:02:25]} 17. Qd3 {[%clk 0:02:15]}  Rac8 {[%clk 0:02:25]} 18. Rfd1 {[%clk 0:02:08]}  Nb4 {[%clk 0:02:25]} 19. Qe2 {[%clk 0:02:07]}  a5 {[%clk 0:02:15]} 20. a3 {[%clk 0:02:03]}  a4 {[%clk 0:02:15]} 21. axb4 {[%clk 0:01:59]}  axb3 {[%clk 0:02:15]} 22. e5 {[%clk 0:01:27]}  dxe5 {[%clk 0:01:49]} 23. Bxe5 {[%clk 0:01:26]}  Rxb4 {[%clk 0:01:45]} 24. d6 {[%clk 0:01:26]}  exd6 {[%clk 0:01:34]} 25. Bxd6 {[%clk 0:01:23]}  Rb6 {[%clk 0:01:34]} 26. Be7 {[%clk 0:01:21]}  Qe8 {[%clk 0:01:34]} 27. Bxf6 {[%clk 0:01:13]}  Qxe2 {[%clk 0:01:32]} 28. Nxe2 {[%clk 0:01:11]}  Rxf6 {[%clk 0:01:32]} 29. Rxd7 {[%clk 0:01:09]}  Rxf2 {[%clk 0:01:32]} 30. Re1 {[%clk 0:00:56]}  Rc2 {[%clk 0:00:50]} 31. Re7 {[%clk 0:00:52]}  Bxb2 {[%clk 0:00:50]} 32. Kg1 {[%clk 0:00:52]}  Bd4 {[%clk 0:00:50]} 33. Nxd4 {[%clk 0:00:35]}  Rxg2+ {[%clk 0:00:50]} 34. Kh1 {[%clk 0:00:36]}  Rh2+ {[%clk 0:00:51]} 35. Kg1 {[%clk 0:00:36]}  Rcg2+ {[%clk 0:00:51]} 36. Kf1 {[%clk 0:00:36]}  Rd2 {[%clk 0:00:47]} 37. Ne2 {[%clk 0:00:30]}  b2 {[%clk 0:00:36]} 38. Rxb7 {[%clk 0:00:26]}  Rc2 {[%clk 0:00:16]} 39. h4 {[%clk 0:00:25]}  Kg7 {[%clk 0:00:16]} 40. Rb6 {[%clk 0:00:25]}  Kh6 {[%clk 0:00:12]} 41. Rb7 {[%clk 0:00:21]}  Rd2 {[%clk 0:00:06]} 42. Rb6 {[%clk 0:00:19]}  f6 {[%clk 0:00:06]} 43. Rb5 {[%clk 0:00:18]}  g5 {[%clk 0:00:05]} 44. hxg5+ {[%clk 0:00:18]}  fxg5 {[%clk 0:00:06]} 45. Rb6+ {[%clk 0:00:19]}  Kg7 {[%clk 0:00:06]} 46. Rb7+ {[%clk 0:00:19]}  Kg6 {[%clk 0:00:07]} 47. Rb6+ {[%clk 0:00:20]}  Kf5 {[%clk 0:00:06]} 48. Rb5+ {[%clk 0:00:20]}  Kf6 {[%clk 0:00:03]} 49. Rb6+ {[%clk 0:00:20]}  Kf7 {[%clk 0:00:03]} 50. Rb7+ {[%clk 0:00:20]}  Ke8 {[%clk 0:00:03]} 51. Nc3+ {[%clk 0:00:15]}  Kd8 {[%clk 0:00:03]} 52. Re2 {[%clk 0:00:15]}  Rhxe2 {[%clk 0:00:02]} 53. Nxe2 {[%clk 0:00:14]}  Rd1+ {[%clk 0:00:02]} 54. Kf2 {[%clk 0:00:15]}  b1=Q {[%clk 0:00:03]} 55. Rxb1 {[%clk 0:00:15]}  Rxb1 {[%clk 0:00:04]} 56. Nc3 {[%clk 0:00:15]}  Rb2+ {[%clk 0:00:04]} 57. Kg1 {[%clk 0:00:15]}  Rb3 {[%clk 0:00:04]} 58. Ne4 {[%clk 0:00:16]}  Ke7 {[%clk 0:00:04]} 59. Kf2 {[%clk 0:00:15]}  g4 {[%clk 0:00:04]} 60. Nc5 {[%clk 0:00:15]}  Ra3 {[%clk 0:00:03]} 61. Ne4 {[%clk 0:00:15]}  Ke6 {[%clk 0:00:04]} 62. Nc5+ {[%clk 0:00:15]}  Kd5 {[%clk 0:00:03]} 63. Nd7 {[%clk 0:00:15]}  Ra2+ {[%clk 0:00:04]} 64. Ke3 {[%clk 0:00:15]}  h4 {[%clk 0:00:02]} 65. Nf6+ {[%clk 0:00:15]}  Ke6 {[%clk 0:00:02]} 66. Nxg4 {[%clk 0:00:14]}  h3 {[%clk 0:00:03]} 67. Nf2 {[%clk 0:00:13]}  h2 {[%clk 0:00:02]} 68. Nh1 {[%clk 0:00:14]}  Ra1 {[%clk 0:00:02]} 69. Kf3 {[%clk 0:00:14]}  Rxh1 {[%clk 0:00:02]} 70. Kg2 {[%clk 0:00:15]}  Ra1 {[%clk 0:00:03]} 71. Kxh2 {[%clk 0:00:16]}  Kf5 {[%clk 0:00:04]} 72. Kh3 {[%clk 0:00:16]}  Kg5 {[%clk 0:00:04]} 73. g4 {[%clk 0:00:16]}  Ra3+ {[%clk 0:00:05]} 74. Kg2 {[%clk 0:00:16]}  Kxg4 {[%clk 0:00:05]} 75. Kf2 {[%clk 0:00:17]}  Rf3+ {[%clk 0:00:06]} 76. Ke1 {[%clk 0:00:18]}  Kf4 {[%clk 0:00:07]} 77. Ke2 {[%clk 0:00:18]}  Ke4 {[%clk 0:00:08]} 78. Kd1 {[%clk 0:00:19]}  Re3 {[%clk 0:00:09]} 79. Kd2 {[%clk 0:00:19]}  Kd4 {[%clk 0:00:10]} 80. Kd1 {[%clk 0:00:20]}  Rd3+ {[%clk 0:00:11]} 81. Kc1 {[%clk 0:00:21]}  Kc3 {[%clk 0:00:11]} 82. Kb1 {[%clk 0:00:21]}  Kb3 {[%clk 0:00:12]} 83. Kc1 {[%clk 0:00:21]}  Rd4 {[%clk 0:00:13]} 84. Kb1 {[%clk 0:00:22]}  Rd1# {[%clk 0:00:14]} 0-1


[Site "https://www.chess.com"]